Cogmind - Beta 13 @@@ ROGUE MODE // 2024.07.13 @ 01:10:47 Player: Heclapar Result: Destroyed by JB-12U(R) with Subdweller Laser Performance ------------- Evolutions (0) 0 Regions Visited (3) 600 Robots Destroyed (26) 130 Value Destroyed (521) 521 Prototype IDs (1) 20 Alien Tech Used (0) 0 Bonus (-31) -31 TOTAL SCORE: 1240 Bonus ------- Follower Combat Kills 7 Friendly Fire -38 Cogmind --------- Core Integrity 0/250 Matter 250/300 Energy 233/250 System Corruption 0% Temperature Cool (6) Movement Rolling (100) Location -10/Subcaves Parts ------- > --- POWER (1) -------- Ion Engine > --- PROPULSION (2) --- Armored Wheel Subdweller Monowheel > --- UTILITY (2) ------ Improved Heat Sink Large Storage Unit > --- WEAPON (2) ------- Improved Medium Laser Improved Medium Laser > --- INVENTORY (15) --- Makeshift Leg Armored Wheel Armored Wheel Medium Battery (150) Subdweller Optics Terrain Scanner Makeshift System Shield Improved Medium Laser Barrage Gun Battle Cannon Grenade Launcher Flamer Flail Peak State ------------ > --- POWER ------------ Subdweller Power Source > --- PROPULSION ------- Compact Wheel Armored Wheel > --- UTILITY ---------- Improved Heat Sink Large Storage Unit > --- WEAPON ----------- Improved Medium Laser Improved Medium Laser > --- INVENTORY -------- Ion Engine Makeshift Leg Armored Wheel Armored Wheel Medium Battery Terrain Scanner Improved Medium Laser Barrage Gun Grenade Launcher Flail [Rating: 17] Favorites ----------- Power Light Ion Engine Engine Light Ion Engine Propulsion Armored Wheel Leg Aluminum Leg Wheel Armored Wheel Utility Improved Heat Sink Device Improved Heat Sink Storage Large Storage Unit Weapon Improved Medium Laser Energy Gun Improved Medium Laser Launcher Grenade Launcher Build | -11 -10 -10 -10 ------- Run | Yrd Mat Min Sub Slots Evolved . | . . . . Power . | . . . . Propulsion . | . . . . Utility . | . . . . Weapon . | . . . . Parts Attached 22 | . 9 8 5 Power 3 | . 1 . 2 Engine 3 | . 1 . 2 Core . | . . . . Reactor . | . . . . Propulsion 4 | . 2 1 1 Treads . | . . . . Leg . | . . . . Wheel 4 | . 2 1 1 Hover . | . . . . Flight . | . . . . Utility 4 | . 4 . . Device 3 | . 3 . . Storage 1 | . 1 . . Processor . | . . . . Hackware . | . . . . Protection . | . . . . Artifact . | . . . . Weapon 11 | . 2 7 2 Energy Gun 7 | . 2 4 1 Energy Cannon . | . . . . Ballistic Gun . | . . . . Ballistic Cannon . | . . . . Launcher 4 | . . 3 1 Special Weapon . | . . . . Impact Weapon . | . . . . Slashing Weapon . | . . . . Piercing Weapon . | . . . . Special Melee Weapon . | . . . . Unidentified Prototypes 1 | . 1 . . Parts Lost 1 | . . 1 . Power . | . . . . Propulsion 1 | . . 1 . Utility . | . . . . Weapon . | . . . . Highest Loss Streak 1 | . . 1 . To Critical Strikes . | . . . . Average Slot Usage (%) 98 | . 96 98 100 Engine 14 | . 14 14 14 Wheel 27 | . 26 27 28 Device 13 | . 11 14 14 Storage 14 | . 14 14 14 Energy Gun 26 | . 27 23 27 Launcher 1 | . . 4 . Naked Turns . | . . . . Heaviest Build 32 | 12 30 30 32 Greatest Support 32 | 20 24 28 32 Greatest Overweight (x) 2 | . 1 2 1 Average Overweight (x) . | . . 1 . Largest Inventory Capacity 15 | . 15 15 15 Average Capacity 14 | . 11 15 15 Most Carried 13 | . 10 10 13 Average Carried 9 | . 8 9 11 Final Capacity 15 | 8 15 15 15 Final Carried 13 | 6 10 9 13 Class Distribution -------------------- 100% | Mutant Dominant Class ---------------- Mutant | -10/Materials Mutant | -10/Mines Mutant | -10/Subcaves Resources | -11 -10 -10 -10 ----------- Run | Yrd Mat Min Sub Matter Collected 455 | 200 80 153 22 Remotely . | . . . . Salvage Created 664 | . 371 247 46 Parts 38 | . 17 18 3 Haulers Intercepted 1 | . 1 . . Recyclers Shooed . | . . . . Parts Field Recycled . | . . . . Retrieved Matter . | . . . . Parts Self-Destructed 3 | . . . 3 Prevented . | . . . . Kills | -11 -10 -10 -10 ------- Run | Yrd Mat Min Sub Combat Hostiles Destroyed 21 | . 10 9 2 Guns 15 | . 10 4 1 AOE 6 | . . 5 1 Classes Destroyed 7 | . 5 1 1 Worker 2 | . 1 1 . Hauler 1 | . 1 . . Recycler 1 | . 1 . . Swarmer 11 | . 6 5 . Grunt 8 | . 4 4 . Subdweller 2 | . . . 2 Zionite 1 | . . 1 . Best Kill Streak 4 | . 4 3 1 Combat Bots Only 3 | . 3 3 1 Max Kills in Single Turn 3 | . 2 3 1 Gunslinging 1 | . 1 . . Exploded 3 | . . 3 1 Melee . | . . . . Uniques/NPCs Destroyed . | . . . . Combat | -11 -10 -10 -10 -------- Run | Yrd Mat Min Sub Hostile Shots Fired 70 | . 37 20 13 Missed 17 | . 8 6 3 Damage Taken 645 | . 288 152 205 Core 260 | . 114 43 103 Absorbed by Shields . | . . . . Core Remaining (%) 100 | 100 . . . Volleys Fired 53 | . 24 19 10 Largest 2 | . 2 2 2 Hottest 112 | . 112 112 112 Shots Fired 97 | . 48 31 18 Gun 88 | . 48 24 16 Cannon . | . . . . Launcher 9 | . . 7 2 Special . | . . . . Kinetic . | . . . . Thermal 88 | . 48 24 16 Explosive 9 | . . 7 2 Electromagnetic . | . . . . Robot Hit Streak 17 | . 6 6 17 Robot Miss Streak 4 | . 4 3 . Penetration Max . | . . . . Secondary Targets 3 | . 3 . . Max Gunslinging Chain 1 | . 1 . . Shots Hit Robots 53 | . 24 16 13 Core Hits 34 | . 14 14 6 Critical Kills . | . . . . Critical Parts Destroyed . | . . . . Critical Strikes 7 | . 3 1 3 Burn 7 | . 3 1 3 Melee Attacks . | . . . . Impact . | . . . . Slashing . | . . . . Piercing . | . . . . Sneak Attacks . | . . . . Combat Hostiles . | . . . . Follow-up Attacks . | . . . . Damage Inflicted 1255 | . 424 530 301 Guns 860 | . 424 217 219 Cannons . | . . . . Explosions 395 | . . 313 82 Melee . | . . . . Ramming . | . . . . Kinetic . | . . . . Thermal 860 | . 424 217 219 Explosive 395 | . . 313 82 Electromagnetic . | . . . . Impact . | . . . . Slashing . | . . . . Piercing . | . . . . Highest Corruption . | . . . . Average Corruption . | . . . . Corruption Purged . | . . . . Corruption Blocked . | . . . . Overload Shots . | . . . . Overflow Damage 8 | . . 8 . Projectiles . | . . . . Explosions 8 | . . 8 . Melee . | . . . . Knockbacks . | . . . . Impact . | . . . . Kinetic . | . . . . Secondary . | . . . . Self-Inflicted Damage . | . . . . Shots . | . . . . Rammed . | . . . . Targets Rammed . | . . . . Kicked . | . . . . Crushed . | . . . . Highest Temperature 218 | . 218 54 . Average Temperature 58 | . 74 20 . Received Heat Transfer 183 | . 84 45 54 Siege Activations . | . . . . Robots Corrupted . | . . . . Combat Hostiles . | . . . . Parts Fried . | . . . . Impact Corruptions . | . . . . Robots Melted . | . . . . Combat Hostiles . | . . . . Parts Melted 4 | . 2 . 2 Heat Transferred 2405 | . 1147 555 703 Parts Sabotaged . | . . . . Parts Stolen . | . . . . Parts Stripped . | . . . . Power Chain Reactions . | . . . . Alert | -11 -10 -10 -10 ------- Run | Yrd Mat Min Sub Peak Influence 325 | . 325 254 . Initial 48 | . . 48 . Average 136 | . 132 140 . Maximum Alert Level 1 | . 1 1 . Low Security (%) 72 | . 64 78 . Level 1 27 | . 35 21 . Level 2 . | . . . . Level 3 . | . . . . Level 4 . | . . . . Level 5 . | . . . . High Security . | . . . . Max Security . | . . . . Squads Dispatched 1 | . 1 . . Investigation 1 | . 1 . . Extermination . | . . . . Reinforcement . | . . . . Assault . | . . . . Garrison . | . . . . Intercept . | . . . . Searches Triggered . | . . . . Construction Impeded . | . . . . Haulers Reinforced . | . . . . Active Scanning Responses . | . . . . Cargo Convoy Interrupts . | . . . . Stealth | -11 -10 -10 -10 --------- Run | Yrd Mat Min Sub Distress Signals 1 | . 1 . . Communications Jammed . | . . . . Distress Signals . | . . . . Times Spotted 28 | . 15 10 3 Peak Tracking Total 5 | . 5 3 2 Tactical Retreats 1 | . 1 . . Traps | -11 -10 -10 -10 ------- Run | Yrd Mat Min Sub Traps Triggered 1 | . 1 . . Indirectly . | . . . . Trap Hack Attempts . | . . . . Triggered . | . . . . Disarmed . | . . . . Reprogrammed . | . . . . Reused . | . . . . Traps Extracted . | . . . . Installed . | . . . . Triggered . | . . . . Machines | -11 -10 -10 -10 ---------- Run | Yrd Mat Min Sub Machines Disabled 1 | . . 1 . Max in Single Turn 1 | . . 1 . Machines Repaired . | . . . . Machines Dismantled . | . . . . Machines Sabotaged . | . . . . Overloaded Fab Kills . | . . . . Hacking | -11 -10 -10 -10 --------- Run | Yrd Mat Min Sub Machines Accessed . | . . . . Terminals . | . . . . Fabricators . | . . . . Repair Stations . | . . . . Recycling Units . | . . . . Scanalyzers . | . . . . Garrison Access . | . . . . Total Hacks . | . . . . Successful . | . . . . Failed . | . . . . Catastrophic . | . . . . Database Lockouts . | . . . . Manual . | . . . . Terminals . | . . . . Fabricators . | . . . . Repair Stations . | . . . . Recycling Units . | . . . . Scanalyzers . | . . . . Garrison Access . | . . . . Terminal Hacks . | . . . . Fabricator Hacks . | . . . . Repair Station Hacks . | . . . . Recycling Unit Hacks . | . . . . Scanalyzer . | . . . . Garrison Access Hacks . | . . . . Unauthorized Hacks . | . . . . Terminals . | . . . . Fabricators . | . . . . Repair Stations . | . . . . Recycling Units . | . . . . Scanalyzers . | . . . . Garrison Access . | . . . . Data Cores Recovered . | . . . . Used . | . . . . Hacking Detections . | . . . . Full Trace Events . | . . . . Feedback Events . | . . . . Feedback Blocked . | . . . . Robot Schematics Acquired . | . . . . Robots Built . | . . . . Authchips . | . . . . Time . | . . . . Total Robot Build Rating . | . . . . Part Schematics Acquired . | . . . . Parts Built . | . . . . Authchips . | . . . . Time . | . . . . Total Part Build Rating . | . . . . Parts Repaired . | . . . . Time . | . . . . Parts Recycled . | . . . . Recycled Matter . | . . . . Retrieved Matter . | . . . . Retrieved Components . | . . . . Parts Scanalyzed . | . . . . Part Schematics Acquired . | . . . . Parts Damaged . | . . . . Bothacking | -11 -10 -10 -10 ------------ Run | Yrd Mat Min Sub Used RIF Installer . | . . . . Robots Hacked . | . . . . Non-combat . | . . . . Combat . | . . . . Robot Hacks Applied . | . . . . Relay Couplers Released . | . . . . Fabnet Peak Effective % . | . . . . Robots Rewired . | . . . . Allies Hacked . | . . . . Hacks Repelled . | . . . . Allies | -11 -10 -10 -10 -------- Run | Yrd Mat Min Sub Total Allies 2 | . . 2 . Largest Group 2 | . . 2 . Highest-Rated Group 45 | . . 45 . Highest-Rated Ally 31 | . . 31 . Total Orders . | . . . . Ally Attacks 5 | . . 5 . Total Damage 63 | . . 63 . Kills 1 | . . 1 . Allies Corrupted . | . . . . Allies Melted . | . . . . Intel | -11 -10 -10 -10 ------- Run | Yrd Mat Min Sub Robot Analysis Total . | . . . . Derelict Logs Recovered 3 | . . 2 1 Drone Launches . | . . . . Drone Recoveries . | . . . . Exploration | -11 -10 -10 -10 ------------- Run | Yrd Mat Min Sub Turns Passed 1536 | . 459 567 510 Spaces Moved 1182 | 1 322 463 396 Core . | . . . . Treads . | . . . . Legs 16 | 1 15 . . Wheels 1166 | . 307 463 396 Hover . | . . . . Flight . | . . . . Fastest Speed 90 | 120 90 105 100 Average Speed 106 | 120 100 107 109 Slowest Speed 120 | 120 120 120 110 Overloaded Moves . | . . . . Propulsion Burnouts . | . . . . Robots Hopped . | . . . . Cave-ins Triggered . | . . . . Exploration Rate (%) 42 | 2 57 81 28 Regions Visited 3 Branch Regions 2 Pre-discovered Areas . | . . . . Known Exits Taken . | . . . . Unknown Exits Taken 3 | 1 1 1 . Scrap Searched 2 | . . 1 1 Spaces Dug 8 | . . 8 . Terrain Destroyed 61 | . . 51 10 Melee . | . . . . Projectile . | . . . . AOE 61 | . . 51 10 Terrain Rammed . | . . . . Walls Destroyed . | . . . . Machines Disabled . | . . . . Actions | -11 -10 -10 -10 --------- Run | Yrd Mat Min Sub Total 1369 | . 414 497 458 Wait 85 | . 40 6 39 Move 1179 | . 321 462 396 Hop . | . . . . Pick Up 15 | . 9 1 5 Fast Attach 6 | . 4 . 2 Attach 3 | . 1 1 1 Detach . | . . . . Swap 13 | . 4 7 2 Drop 15 | . 11 1 3 Fire 53 | . 24 19 10 Melee . | . . . . Ram . | . . . . Kick . | . . . . Crush . | . . . . Escape Stasis . | . . . . Rewire . | . . . . Trap . | . . . . Miscellaneous . | . . . . Route ------- -11/Scrapyard -10/Materials (discovered 2 exits: [*Mat] / [*Min]) -10/Mines (discovered 4 exits: [*Mat x2] / Exi / [*Sub]) -10/Subcaves History --------- Turn | Location | Event 1 | -11/Scrapyard | Discovered new exit (range 0) 1 | -11/Scrapyard | Entered Materials 115 | -10/Materials | Discovered new exit (range 15) 317 | -10/Materials | Build established: Mutant 410 | -10/Materials | Discovered new exit (range 15) 460 | -10/Materials | Entered Mines 727 | -10/Mines | Core integrity fell below 50% 784 | -10/Mines | Learned Materials stockpile data 784 | -10/Mines | Discovered new exit (range 8) 874 | -10/Mines | Discovered new exit (range 8) 990 | -10/Mines | Identified exit to Exiles 1023 | -10/Mines | Discovered new exit (range 4) 1027 | -10/Mines | Entered Subcaves 1099 | -10/Subcaves | Shifting Twisted Machinery released Flamer 1102 | -10/Subcaves | Shifting Twisted Machinery released Sub. Optics 1240 | -10/Subcaves | Learned Materials terminal intel 1480 | -10/Subcaves | Core integrity fell below 20% 1527 | -10/Subcaves | Ambushed by Subdwellers from Twisted Machinery 1537 | -10/Subcaves | Destroyed by JB-12U(R) with Subdweller Laser Last Messages --------------- 01354_ Subatomizers dissect the Broken Sub. Power Source. 01382_ Acquired 10 matter. 01442_ M4-X45(R): "ECOKILL!" 01464_ M4-X45(R) suffers critical hit (Burn). 01474_ M4-X45(R) overheating. 01479_ Sub. Laser melted. 01479_ Sub. Power Source melted. 01479_ M4-X45(R) destroyed. 01485_ Acquired Battle Cannon. 01487_ Dropped Com. Wheel. 01487_ Acquired Sub. Monowheel. 01527_ JB-12U(R) emerges from the Twisted Machinery. 01530_ SB-8NF(R) destroyed. 01536_ Subatomizers dissect the Sub. Optics. 01536_ JB-12U(R) affixes Scrap Shield Fragment to Scrap Shield. 01537_ JB-12U(R) suffers critical hit (Burn). Map ----- +----------------------------------------------------+ | ?????????????????????????????????????????? ??????? | | ?????????????????????????????????????????? ##????? | | ??????????????????????????????????? ???## #???#? | | ???????????????????????????????? "?## ?? ? | | ???????????????????????????????? ?# ?? ? | | ???????????????????? ?????????? ## ??? # | | ???????????????????? ? ???????## ???# | | ????????????????????? #????? ## ???## | | ????????????????????? " #???" ## ???# | | ?????????????????????? """"""" ## #???# | | ??????????????????????? """"" ##??# | | ???????????????????????? """"" ## ##?# | | ????????????????????????# """" ## #?# | | ???????????????????????## =%* ????# ### | | ??????????????????????## = #?###?# | | ?????????????????????## & ### ### | | ?????????????????????# &%!### | | ?????????????????????# & ## # | | ?????????????????????## ### | | ???????????? ????????### #?? | | ??????????? ????????## #### ####?? | | ??????????? ??????## ##?#### ##????? | | ?????????? ##### #????## #####?????? | | ?????????? #?????#####?????????? | | ?????????? [% ##???????????????????? | | ?????????? ## @ ##????????????????????? | | ??????????????????# #?????????????????????? | | ??????????????????## #?????????????????????? | | ???????????????????## ?????????????????????? | | ????????????????????# ????????????????????? | | ????????????????????# * #???????????????????? | | ????????????????????## !% #???????????????????? | | ????????????????????? #???????????????????? | | ????????????????????# ##???????????????????? | | ????????????????????"# #????????????????????? | | ????????????????????# #????????????????????? | | ????????????????????? #????????????????????? | | ????????????????????##%* #????????????????????? | | ?????????????????????#R ????????????????????? | | ?????????????????????#" """""????????????????????? | | ???????????????????????"?????????????????????????? | | ?????????????????????????????????????????????????? | | ?????????????????????????????????????????????????? | | ?????????????????????????????????????????????????? | | ?????????????????????????????????????????????????? | | ?????????????????????????????????????????????????? | | ?????????????????????????????????????????????????? | | ?????????????????????????????????????????????????? | | ?????????????????????????????????????????????????? | | ?????????????????????????????????????????????????? | +----------------------------------------------------+ Best States ------------- Heat Dissipation 39 Energy Generation 15 Energy Capacity 250 Matter Stores 300 Matter Capacity 300 Sight Range 16 Terrain Scan Range 14 Terrain Scan Density 10 Evasion (%) 55 Item Schematics ----------------- None Robot Schematics ------------------ None Fabricated ------------ Nothing Alien Tech Used ----------------- None Achievements -------------- None Challenges ------------ None Game ------ Seed AlphaControlComputer Manual? 0 Play Time 00:11:20 Cumulative 76.1 hours Start 2024.07.13 @ 00:59:25 End 2024.07.13 @ 01:10:47 Sessions 1 Manual Loads 0 Difficulty Rogue Special Mode None Game No. 89 Rogue 89 Adventurer 0 Explorer 0 Win Type - Total 0 Types 0/0/0/0/0/0/0/0/0 Lore% 41 Gallery% 55 Achievement% 51 Wizard Run 0 Options --------- Layout 1 ASCII 0 Keyboard 0 Movement Mouse Keybinds 0 Fullscreen 1 Font 32/SmallcapsGlow Map View 50x35 Zoom Use 0% Tactical HUD 1 Map Filters NONE Filters NONE Steam 1 RUN: 8862750c-44e6-436b-9bf4-be23934a6daf